bitfinex/quotes_BTCUSD_20241222
["timestamp","ask_amount","ask_price","bid_price","bid_amount"]
[1734885945659,0.157,95575.0,95565.0,0.209281]
[1734885945855,0.1013084,95574.0,95565.0,0.209281]
[1734885946098,0.15,95573.0,95565.0,0.209281]
[1734885946312,0.001,95568.0,95565.0,0.209281]
[1734885946681,0.15,95571.0,95565.0,0.209281]
[1734885946880,0.2513084,95571.0,95565.0,0.209281]
[1734885947109,0.2513084,95571.0,95565.0,0.203281]
[1734885947486,0.001,95568.0,95565.0,0.203281]
[1734885948832,0.001,95568.0,95566.0,0.0826]
[1734885949027,0.1,95607.0,95566.0,0.0826]
[1734885949028,0.209229,95589.0,95575.0,0.209259]
[1734885949167,0.1013084,95588.0,95575.0,0.418518]
[1734885949365,0.209233,95587.0,95575.0,0.209259]
[1734885949585,0.1013084,95586.0,95575.0,0.209259]
[1734885949826,0.1013084,95586.0,95566.0,0.341778]
[1734885949827,0.00104424,95585.0,95566.0,0.1325]
[1734885950035,0.00104424,95585.0,95553.0,0.209306]
[1734885950036,0.10235264,95585.0,95557.0,0.0826]
[1734885950235,0.209273,95569.0,95558.0,0.209296]
[1734885950443,0.1013084,95568.0,95558.0,0.209296]
[1734885950887,0.10235264,95568.0,95558.0,0.209296]
[1734885951392,0.1013084,95568.0,95562.0,0.209287]
[1734885951772,0.1013084,95568.0,95566.0,0.209278]
[1734885952171,0.00104424,95577.0,95572.0,0.209264]
[1734885952352,0.008,95585.0,95576.0,0.209257]
[1734885952559,0.1013084,95584.0,95580.0,0.209248]
[1734885953153,0.1013084,95584.0,95580.0,0.418496]
[1734885953333,0.15,95593.0,95584.0,0.209239]
[1734885953465,0.006,95585.0,95584.0,0.209239]
[1734885953676,0.10147028,95585.0,95584.0,0.209239]
[1734885955393,0.00016188,95585.0,95584.0,0.291839]
[1734885956402,0.00216188,95585.0,95584.0,0.291839]
[1734885956582,0.00016188,95585.0,95584.0,0.291839]
[1734885956966,0.00016188,95585.0,95584.0,0.294839]
[1734885957171,0.00016188,95585.0,95584.0,0.288839]
[1734885958174,0.00016188,95585.0,95584.0,0.361739]
[1734885958896,0.00033328,95585.0,95584.0,0.361739]
[1734885960696,0.00033328,95585.0,95584.0,0.1355]
[1734885960893,0.25164168,95585.0,95584.0,0.003]
[1734885961077,0.26239501,95585.0,95584.0,0.003]
[1734885962387,0.359268,95571.0,95570.0,0.09301501]
[1734885962588,0.4605764,95571.0,95570.0,0.09301501]
[1734885963191,0.209281,95565.0,95553.0,0.2859917]
[1734885963828,0.209281,95565.0,95553.0,0.0766857]
[1734885964037,0.15,95569.0,95554.0,0.209305]
[1734885964038,0.209275,95568.0,95554.0,0.209305]
[1734885964247,0.1013084,95567.0,95554.0,0.209305]
[1734885964453,0.003,95565.0,95554.0,0.209305]
[1734885965189,0.003,95565.0,95553.0,0.0766857]
[1734885965526,0.003,95565.0,95559.0,0.209293]
[1734885965739,0.1013084,95567.0,95553.0,0.0766857]
[1734885966109,0.1043084,95567.0,95553.0,0.0766857]
[1734885966271,0.1013084,95567.0,95553.0,0.0766857]
[1734885966671,0.209281,95565.0,95553.0,0.0766857]
[1734885966877,0.209281,95565.0,95554.0,0.209305]
[1734885967077,0.209281,95565.0,95554.0,0.203305]
[1734885967428,0.421563,95565.0,95553.0,0.0766857]
[1734885967590,0.209281,95565.0,95553.0,0.0766857]
[1734885968162,0.209292,95560.0,95553.0,0.0766857]
[1734885968573,0.1013084,95567.0,95553.0,0.0766857]
[1734885968770,0.209284,95564.0,95553.0,0.0766857]
[1734885969171,0.1013084,95563.0,95553.0,0.0766857]
[1734885969392,0.1013084,95563.0,95550.0,0.0499]
[1734885969599,0.2093,95557.0,95550.0,0.0499]
[1734885970754,0.209304,95555.0,95545.0,0.0768]
[1734885970955,0.209307,95553.0,95545.0,0.0768]
[1734885971159,0.3106154,95553.0,95545.0,0.0768]
[1734885971365,0.3106154,95553.0,95539.0,0.048]
[1734885972008,0.3106154,95553.0,95552.0,0.0006254]
[1734885972227,0.209327,95544.0,95539.0,0.0427111]
[1734885972398,0.209327,95544.0,95539.0,0.04287401]
[1734885974063,0.212327,95544.0,95539.0,0.04287401]
[1734885975288,0.421655,95544.0,95539.0,0.04287401]
[1734885975725,0.212327,95544.0,95539.0,0.04287401]
[1734885977047,0.212327,95544.0,95539.0,0.03687401]
[1734885978159,0.212327,95544.0,95539.0,0.03657401]
[1734885978984,0.421655,95544.0,95539.0,0.03657401]
[1734885979473,0.003,95544.0,95541.0,0.209333]
[1734885979697,0.003,95544.0,95543.0,0.309129]
[1734885980112,0.003,95544.0,95543.0,0.5104374]
[1734885980339,0.09389677,95581.0,95557.0,0.0768]
[1734885980541,0.209255,95577.0,95557.0,0.0768]
[1734885980746,0.1013084,95576.0,95564.0,0.209282]
[1734885980950,0.1013084,95576.0,95559.0,0.209294]
[1734885981123,0.1013084,95576.0,95568.0,0.209273]
[1734885981124,0.15,95575.0,95568.0,0.209273]
[1734885981352,0.2513084,95575.0,95568.0,0.209273]
[1734885981467,0.2513084,95575.0,95567.0,0.048]
[1734885981891,0.2513084,95575.0,95568.0,0.209275]
[1734885982256,0.2513084,95575.0,95567.0,0.048]
[1734885982257,0.2513084,95575.0,95569.0,0.209272]
[1734885982461,0.1018482,95575.0,95570.0,0.20927]
[1734885982606,0.0005398,95575.0,95571.0,0.07974628]
[1734885982819,0.0005398,95575.0,95572.0,0.21031221]
[1734885983377,0.0005398,95575.0,95572.0,0.41957821]
[1734885983588,0.0025398,95575.0,95572.0,0.41957821]
[1734885984075,0.0005398,95575.0,95572.0,0.41957821]
[1734885985536,0.0007112,95575.0,95572.0,0.41957821]
[1734885986070,0.0007112,95575.0,95572.0,0.42057821]
[1734885987035,0.0007112,95575.0,95572.0,0.41457821]
[1734885987512,0.0007112,95575.0,95572.0,0.41357821]
[1734885987836,0.0007112,95575.0,95572.0,0.41857821]
[1734885988042,0.0007112,95575.0,95572.0,0.41357821]
[1734885988384,0.0017112,95575.0,95572.0,0.42157821]
[1734885988795,0.0007112,95575.0,95572.0,0.41357821]
[1734885989216,0.0007112,95575.0,95572.0,0.41757821]
[1734885990977,0.0007112,95575.0,95572.0,0.00504621]
[1734885991200,0.0007112,95575.0,95572.0,0.004]
[1734885991201,0.3105694,95574.0,95572.0,0.004]
[1734885991454,0.00104424,95573.0,95572.0,0.004]
[1734885991625,0.10235264,95573.0,95572.0,0.004]
[1734885992157,0.1013084,95573.0,95569.0,0.4047953]
[1734885992289,0.1013084,95572.0,95569.0,0.4047953]
[1734885992933,0.1013084,95572.0,95564.0,0.209282]
[1734885993533,0.209268,95571.0,95558.0,0.209296]
[1734885993738,0.1013084,95570.0,95550.0,0.0792]
[1734885993940,0.1013084,95570.0,95556.0,0.209301]
[1734885994183,0.1013084,95570.0,95560.0,0.209291]
[1734885995578,0.1043084,95570.0,95560.0,0.209291]
[1734885996023,0.209283,95564.0,95552.0,0.209308]
[1734885996170,0.1013084,95563.0,95552.0,0.209308]
[1734885996851,0.1013084,95563.0,95550.0,0.08965958]
[1734885996852,0.20929,95561.0,95550.0,0.0792]
[1734885997059,0.41858,95561.0,95547.0,0.20332]
[1734885997810,0.20929,95561.0,95547.0,0.20332]
[1734885998181,0.20929,95561.0,95550.0,0.001]
[1734885998363,0.20929,95561.0,95547.0,0.20332]
[1734885998759,0.20929,95561.0,95560.0,8.57e-05]
[1734885998965,0.21329,95561.0,95560.0,8.57e-05]
[1734885999247,0.20929,95561.0,95560.0,8.57e-05]
[1734886000468,0.1013084,95563.0,95560.0,8.57e-05]
[1734886000741,0.15,95569.0,95560.0,8.57e-05]
[1734886000982,0.15,95579.0,95560.0,8.57e-05]
[1734886001188,0.15,95573.0,95561.0,0.209289]
[1734886001354,0.1013084,95572.0,95565.0,0.209281]
[1734886002139,0.1013084,95572.0,95565.0,0.203281]
[1734886002793,0.1043084,95572.0,95565.0,0.203281]
[1734886003034,0.1043084,95572.0,95561.0,0.497779]
[1734886003233,0.1013084,95572.0,95561.0,0.497779]
[1734886003441,0.1043084,95572.0,95561.0,0.288489]
[1734886003576,0.1043084,95572.0,95565.0,0.20928]
[1734886003982,0.003,95572.0,95561.0,0.288489]
[1734886004233,0.003,95572.0,95569.0,0.209271]
[1734886004450,0.003,95572.0,95564.0,0.209283]
[1734886006048,0.1507112,95575.0,95564.0,0.209283]
[1734886006246,0.1507112,95575.0,95564.0,0.418566]
[1734886006445,0.003,95572.0,95564.0,0.209283]
[1734886006798,0.1507112,95575.0,95568.0,0.209273]
[1734886006799,0.0007112,95575.0,95568.0,0.209273]
[1734886007001,0.003,95572.0,95563.0,0.0491]
[1734886007275,0.0007112,95575.0,95564.0,0.00104629]
[1734886007500,0.0007112,95575.0,95572.0,0.209265]
[1734886007701,0.0047112,95575.0,95572.0,0.209265]
[1734886007854,0.0007112,95575.0,95572.0,0.209265]
[1734886009093,0.0007112,95575.0,95572.0,0.418531]
[1734886010110,0.0007112,95575.0,95572.0,0.419531]
[1734886011467,0.0007112,95575.0,95574.0,0.209261]
[1734886012186,0.0007112,95575.0,95574.0,0.203261]
[1734886012390,0.0007112,95575.0,95574.0,0.20430715]
[1734886012593,0.0007112,95575.0,95574.0,0.22730715]
[1734886012795,0.0007112,95575.0,95574.0,0.227261]
[1734886013658,0.0007112,95575.0,95574.0,0.226261]
[1734886013969,0.0007112,95575.0,95574.0,0.6350563]
[1734886016238,0.0007112,95575.0,95574.0,0.64169177]
[1734886016437,0.0017112,95575.0,95574.0,0.64669177]
[1734886017190,0.0017112,95575.0,95574.0,0.64069177]
[1734886017358,0.0017112,95575.0,95574.0,0.68979177]
[1734886018363,0.0001714,95585.0,95577.0,0.2]
[1734886018684,0.00029563,95585.0,95584.0,0.7688353]
[1734886019473,0.00029563,95585.0,95584.0,0.8701437]
[1734886020649,0.00129563,95585.0,95584.0,1.0073484]
[1734886020926,0.00129563,95585.0,95584.0,1.34951514]
[1734886021062,0.00029563,95585.0,95584.0,1.35389135]
[1734886021720,0.00129563,95585.0,95584.0,1.36289135]
[1734886022115,0.00129563,95585.0,95584.0,1.26158295]
[1734886022318,0.00129563,95585.0,95584.0,0.88635325]
[1734886023257,0.00129563,95585.0,95584.0,0.88035325]
[1734886023587,0.00129563,95585.0,95584.0,0.39846793]
[1734886024234,0.00129563,95585.0,95584.0,0.49977633]
[1734886024497,0.00129563,95585.0,95584.0,0.59977633]
[1734886024859,0.0001716,95616.0,95584.0,0.59977633]
[1734886024860,0.0001716,95616.0,95599.0,0.1]
[1734886025063,0.00033432,95616.0,95601.0,0.123]
[1734886025266,0.00033432,95616.0,95615.0,0.74517137]
[1734886026304,0.00433432,95616.0,95615.0,0.74517137]
[1734886026660,0.00033432,95616.0,95615.0,0.53599937]
[1734886026882,0.00433432,95616.0,95615.0,0.53599937]
[1734886027085,0.00033432,95616.0,95615.0,0.53599937]
[1734886027288,0.00033432,95616.0,95615.0,0.52999937]
[1734886027476,0.10164272,95616.0,95615.0,0.53299937]
[1734886027650,0.10164272,95616.0,95615.0,0.52999937]
[1734886027854,0.10364272,95616.0,95615.0,0.52999937]
[1734886028870,0.209172,95615.0,95601.0,0.209202]
[1734886029089,0.10235264,95614.0,95601.0,0.209202]
[1734886030535,0.10635264,95614.0,95601.0,0.209202]
[1734886030812,0.209176,95613.0,95601.0,0.209202]
[1734886031012,0.10235264,95612.0,95601.0,0.209202]
[1734886031437,0.10235264,95612.0,95599.0,0.52999937]
[1734886031438,0.004,95614.0,95599.0,0.52999937]
[1734886031564,0.004,95614.0,95600.0,0.00104583]
[1734886031768,0.004,95614.0,95600.0,0.02404583]
[1734886032027,0.004,95614.0,95609.0,0.209184]
[1734886032202,0.004,95614.0,95609.0,0.203184]
[1734886032619,0.004,95614.0,95611.0,0.41836]
[1734886032805,0.00033432,95616.0,95611.0,0.41836]
[1734886033002,0.003,95612.0,95611.0,0.20918]
[1734886033406,0.00033432,95616.0,95613.0,0.209176]
[1734886033735,0.00033432,95616.0,95613.0,0.418352]
[1734886034106,0.00033432,95616.0,95615.0,0.209172]
[1734886034688,0.00033432,95616.0,95615.0,0.76217137]
[1734886036785,0.00033432,95616.0,95615.0,0.76417137]
[1734886037163,0.00033432,95616.0,95615.0,0.53199937]
[1734886037344,0.00033432,95616.0,95615.0,0.002]
[1734886037971,0.00033432,95616.0,95606.0,0.20919]
[1734886038936,0.3104804,95615.0,95601.0,0.52999937]
[1734886039143,0.1013084,95615.0,95601.0,0.52999937]
[1734886039340,0.418348,95614.0,95601.0,0.52999937]
[1734886039603,0.5196564,95614.0,95602.0,0.2092]
[1734886039880,0.5196564,95614.0,95601.0,0.52999937]
[1734886040027,0.5196564,95614.0,95602.0,0.2092]
[1734886040228,0.3104824,95614.0,95602.0,0.2092]
[1734886040623,0.3134824,95614.0,95602.0,0.2092]
[1734886040817,0.3104824,95614.0,95601.0,0.52999937]
[1734886041057,0.3104824,95614.0,95600.0,0.209203]
[1734886041293,0.3134824,95614.0,95600.0,0.209203]
[1734886041504,0.3134824,95614.0,95580.0,0.52999937]
[1734886041505,0.0829,95606.0,95580.0,0.52999937]
[1734886041702,0.15,95604.0,95577.0,0.62319024]
[1734886041929,0.209234,95587.0,95577.0,0.09319087]
[1734886042221,0.209237,95585.0,95577.0,0.08719087]
[1734886042364,0.418475,95585.0,95577.0,0.08719087]
[1734886042544,0.209237,95585.0,95575.0,8.57e-05]
[1734886042747,0.01170783,95584.0,95575.0,8.57e-05]
[1734886043174,0.01170783,95583.0,95575.0,0.00020993]
[1734886043463,0.209244,95582.0,95575.0,0.00020993]
[1734886043789,0.22095183,95582.0,95575.0,0.00020993]
[1734886043969,0.22095183,95582.0,95575.0,0.00220993]
[1734886044165,0.01170783,95581.0,95575.0,0.00020993]
[1734886044575,0.01170783,95581.0,95575.0,0.00320993]
[1734886044792,0.01170783,95580.0,95575.0,0.00020993]
[1734886045553,0.01170783,95579.0,95575.0,0.00020993]
[1734886046098,0.01170783,95578.0,95575.0,0.00020993]
[1734886046698,0.209251,95579.0,95575.0,0.00020993]
[1734886046900,0.3105594,95579.0,95575.0,0.00020993]
[1734886047085,0.209255,95577.0,95571.0,0.5242093]
[1734886047496,0.209259,95575.0,95571.0,0.5242093]
[1734886048036,0.01170783,95574.0,95571.0,0.5242093]
[1734886048508,0.01170783,95578.0,95571.0,0.5242093]
[1734886048708,0.209255,95577.0,95571.0,0.5242093]
[1734886049131,0.209259,95575.0,95571.0,0.5242949]
[1734886049539,0.01170783,95576.0,95571.0,0.5242949]
[1734886049960,0.01170783,95576.0,95571.0,8.56e-05]
[1734886050390,0.002,95575.0,95571.0,8.56e-05]
[1734886050549,0.01170783,95577.0,95571.0,8.56e-05]
[1734886050951,0.002,95576.0,95571.0,8.56e-05]
[1734886051171,0.209259,95575.0,95571.0,8.56e-05]
[1734886051934,0.002,95576.0,95571.0,8.56e-05]
[1734886051935,0.31161464,95574.0,95571.0,8.56e-05]
[1734886052108,0.209291,95561.0,95551.0,0.6016663]
[1734886052285,0.209291,95561.0,95552.0,0.5242093]
[1734886053118,0.01170783,95572.0,95552.0,0.5242093]
[1734886053289,0.01170783,95571.0,95569.0,0.209271]
[1734886053490,0.01170783,95571.0,95569.0,0.418543]
[1734886053695,0.01170783,95571.0,95570.0,0.5242093]
[1734886053894,0.01170783,95587.0,95580.0,0.209247]
[1734886054282,0.00104424,95592.0,95580.0,0.209247]
[1734886054482,0.1013084,95591.0,95580.0,0.209247]
[1734886054927,0.1013084,95591.0,95584.0,0.209238]
[1734886055372,0.1013084,95591.0,95579.0,0.292448]
[1734886056313,0.1073084,95591.0,95584.0,0.001]
[1734886056689,0.1013084,95591.0,95580.0,0.209248]
[1734886056899,0.1043084,95591.0,95580.0,0.418496]
[1734886057082,0.1043084,95591.0,95589.0,0.209227]
[1734886057283,0.1013084,95591.0,95579.0,0.0832]
[1734886057461,0.1043084,95591.0,95579.0,0.0832]
[1734886057666,0.1043084,95591.0,95581.0,0.209246]
[1734886058120,0.1043084,95591.0,95581.0,0.418492]
[1734886058329,0.1043084,95591.0,95581.0,0.209246]
[1734886058764,0.1043084,95591.0,95487.0,0.0524544]
[1734886058765,0.15,95589.0,95557.0,0.209299]
[1734886058970,0.15,95589.0,95556.0,0.09312338]
[1734886058971,0.209276,95568.0,95556.0,0.09312338]
[1734886059139,0.10235264,95567.0,95556.0,0.09312338]
[1734886059898,0.10235264,95567.0,95553.0,0.209306]
[1734886060516,0.10735264,95567.0,95553.0,0.209306]
[1734886060743,0.10735264,95567.0,95553.0,0.418613]
[1734886061224,0.10235264,95567.0,95553.0,0.418613]
[1734886061777,0.209279,95566.0,95553.0,0.209306]
[1734886061976,0.1013084,95566.0,95553.0,0.209306]
[1734886062347,0.1013084,95566.0,95553.0,0.412613]
[1734886062893,0.1013084,95566.0,95557.0,0.209298]
[1734886063327,0.1033084,95566.0,95557.0,0.209298]
[1734886064127,0.1013084,95566.0,95557.0,0.418596]
[1734886064351,0.1013084,95566.0,95552.0,0.5242093]
[1734886064554,0.1033084,95566.0,95561.0,0.20929]
[1734886064794,0.1033084,95566.0,95558.0,0.209296]
[1734886065004,0.1033084,95566.0,95554.0,0.209305]
[1734886065349,0.1033084,95566.0,95558.0,0.209296]
[1734886065691,0.1013084,95566.0,95558.0,0.209296]
[1734886066029,0.1023084,95566.0,95558.0,0.209296]
[1734886066238,0.1013084,95566.0,95554.0,0.209305]
[1734886066631,0.1033084,95566.0,95554.0,0.209305]
[1734886066809,0.1033084,95566.0,95554.0,0.41861]
[1734886067217,0.1033084,95566.0,95554.0,0.41261]
[1734886067444,0.1013084,95566.0,95554.0,0.41261]
[1734886068300,0.1013084,95566.0,95554.0,0.203305]
[1734886068463,0.1033084,95566.0,95554.0,0.203305]
[1734886068683,0.01170783,95565.0,95554.0,0.203305]
[1734886069723,0.01170783,95564.0,95554.0,0.203305]
[1734886070223,0.01170783,95563.0,95554.0,0.203305]
[1734886070650,0.01170783,95562.0,95554.0,0.203305]
[1734886070780,0.01170783,95562.0,95554.0,0.2038448]
[1734886071204,0.01170783,95561.0,95554.0,0.2038448]
[1734886072076,0.1013084,95566.0,95552.0,0.5187491]
[1734886072077,0.01170783,95560.0,95552.0,0.5187491]
[1734886072604,0.209294,95559.0,95552.0,0.5187491]
[1734886072813,0.01170783,95560.0,95552.0,0.5187491]
[1734886073021,0.01170783,95558.0,95551.0,8.57e-05]
[1734886073222,0.10235264,95557.0,95551.0,8.57e-05]
[1734886073768,0.01170783,95556.0,95551.0,8.57e-05]
[1734886073944,0.11301623,95556.0,95551.0,8.57e-05]
[1734886074278,0.11301623,95556.0,95551.0,0.0020857]
[1734886074496,0.01170783,95555.0,95551.0,0.0020857]
[1734886074720,0.01170783,95555.0,95552.0,0.20931]
[1734886075309,0.209277,95567.0,95552.0,0.41862]
[1734886075310,0.01170783,95554.0,95552.0,0.41862]
[1734886075717,0.209277,95567.0,95552.0,0.41862]
[1734886075718,0.01170783,95553.0,95552.0,0.41862]
[1734886076349,0.01170783,95553.0,95552.0,0.28791]
[1734886076690,0.002,95556.0,95552.0,0.28791]
[1734886076896,0.01170783,95565.0,95564.0,0.209283]
[1734886077072,0.01170783,95565.0,95564.0,0.203283]
[1734886078466,0.01170783,95565.0,95564.0,0.20432936]
[1734886078694,0.01170783,95565.0,95564.0,0.8016784]
[1734886078896,0.01170783,95565.0,95564.0,0.8236321]
[1734886079172,0.0001714,95566.0,95564.0,0.8236321]
[1734886079373,0.0001714,95566.0,95565.0,0.02404618]
[1734886079599,0.0001714,95566.0,95565.0,0.023]
[1734886080181,0.0001714,95566.0,95564.0,0.8016321]
[1734886080356,0.0001714,95566.0,95564.0,0.8006321]
[1734886080555,0.0011714,95566.0,95565.0,0.007]
[1734886081144,0.01287923,95566.0,95565.0,0.007]
[1734886081361,0.01187923,95566.0,95564.0,0.8006321]
[1734886081783,0.01187923,95566.0,95565.0,0.003]
[1734886082139,0.0001714,95566.0,95565.0,0.02704632]
[1734886082343,4e-07,95566.0,95565.0,0.35475454]
[1734886082573,0.0001716,95616.0,95590.0,0.335626]
[1734886082574,0.00121584,95616.0,95590.0,0.335626]
[1734886082797,0.00071421,95591.0,95590.0,0.335626]
[1734886082934,0.00071421,95591.0,95590.0,0.358626]
[1734886083314,0.00071421,95591.0,95590.0,0.352626]
[1734886083947,0.00271421,95591.0,95590.0,0.352626]
[1734886084718,0.00271421,95591.0,95582.0,0.09312338]
[1734886084719,0.00071421,95591.0,95582.0,0.09312338]
[1734886085143,0.00071421,95591.0,95583.0,0.209242]
[1734886085411,0.00071421,95591.0,95587.0,0.209231]
[1734886085835,0.00071421,95591.0,95582.0,0.09312338]
[1734886085965,0.11302415,95590.0,95582.0,0.09312338]
[1734886086166,0.15104424,95589.0,95582.0,0.09312338]
[1734886086368,0.3294084,95583.0,95582.0,0.09312338]
[1734886086593,0.3294084,95583.0,95569.0,0.01066082]
[1734886086594,0.2513084,95583.0,95573.0,0.09312338]
[1734886086795,0.15,95581.0,95573.0,0.09312338]
[1734886086992,0.209257,95576.0,95573.0,0.09312338]
[1734886087311,0.10235264,95575.0,95573.0,0.08712338]
[1734886087468,0.209261,95574.0,95573.0,0.08712338]
[1734886087673,0.3105694,95574.0,95573.0,0.08712338]
[1734886088280,0.32228515,95574.0,95557.0,0.209298]
[1734886088496,0.10235264,95573.0,95557.0,0.209298]
[1734886088672,0.209266,95572.0,95557.0,0.209298]
[1734886088881,0.00104424,95571.0,95554.0,0.209305]
[1734886089079,0.209275,95568.0,95554.0,0.209305]
[1734886089305,0.209284,95564.0,95553.0,0.08712338]
[1734886089506,0.209293,95560.0,95551.0,0.5188348]
[1734886089939,0.11302415,95563.0,95552.0,0.20931]
[1734886090343,0.01171575,95562.0,95554.0,0.002]
[1734886090546,0.11302415,95562.0,95555.0,0.209303]
[1734886091029,0.11302415,95562.0,95551.0,0.5188348]
[1734886091030,0.002,95560.0,95551.0,8.57e-05]
[1734886091183,0.1013084,95560.0,95551.0,0.2093957]
[1734886091392,0.01171575,95559.0,95551.0,0.2093957]
[1734886092188,0.01171575,95558.0,95554.0,0.209304]
[1734886092400,0.01171575,95558.0,95554.0,0.418608]
[1734886092632,0.01171575,95561.0,95556.0,0.209301]
[1734886092832,0.01171575,95561.0,95558.0,0.209296]
[1734886093363,0.00010215,95562.0,95558.0,0.209296]
[1734886093534,0.00010215,95562.0,95559.0,0.209294]
[1734886093982,0.00010215,95562.0,95559.0,0.418588]
[1734886094966,0.00010215,95562.0,95559.0,0.418588]
[1734886095197,0.00010215,95562.0,95561.0,0.20929]
[1734886096293,0.00010215,95562.0,95561.0,0.28529]
[1734886097175,0.00010215,95562.0,95561.0,0.27929]
[1734886097648,0.00010215,95562.0,95561.0,0.28029]
[1734886098041,0.00010215,95562.0,95561.0,0.27929]
[1734886098343,0.00110215,95562.0,95561.0,0.28529]
[1734886099052,0.00110215,95562.0,95561.0,0.30829]
[1734886099183,0.00110215,95562.0,95561.0,0.35639]
[1734886099386,0.00010215,95562.0,95561.0,0.35039]
[1734886099787,0.00110215,95562.0,95561.0,0.35639]
[1734886100087,0.00010215,95562.0,95561.0,0.35039]
[1734886100457,0.00110215,95562.0,95561.0,0.35739]
[1734886100664,0.00010215,95562.0,95561.0,0.5516984]
[1734886100864,0.00010215,95562.0,95561.0,0.5576984]
[1734886101046,0.00110215,95562.0,95561.0,1.0764475]
[1734886101259,0.00010215,95562.0,95561.0,0.8691391]
[1734886101465,0.00010215,95562.0,95561.0,1.32309389]
[1734886101667,0.00010215,95562.0,95561.0,1.19899389]
[1734886102190,0.00010215,95562.0,95561.0,1.19299389]
[1734886102565,0.00110215,95562.0,95561.0,1.19999389]
[1734886102992,0.00010215,95562.0,95561.0,1.19299389]
[1734886103228,0.00110215,95562.0,95561.0,0.7220391]
[1734886103587,0.00010215,95562.0,95561.0,0.7160391]
[1734886104052,0.00010215,95562.0,95561.0,0.20229]
[1734886104223,0.00010215,95562.0,95561.0,0.19729]
[1734886104425,0.00010215,95562.0,95561.0,0.20029]
[1734886104827,0.00010215,95562.0,95561.0,0.30743629]
[1734886105005,0.00010215,95562.0,95561.0,0.30639]
[1734886105389,0.00010215,95562.0,95561.0,0.39995709]
[1734886105825,0.00010215,95562.0,95561.0,0.39695709]
[1734886106032,0.00110215,95562.0,95561.0,0.40295709]
[1734886106452,0.00110215,95562.0,95561.0,0.40304269]
[1734886106896,0.00027335,95562.0,95561.0,0.82764779]
[1734886107148,0.00027335,95562.0,95561.0,1.34639689]
[1734886107355,0.00127335,95562.0,95561.0,1.34639689]
[1734886107530,0.00027335,95562.0,95561.0,1.34039689]
[1734886108104,0.00127335,95562.0,95561.0,1.34639689]
[1734886108486,0.00127335,95562.0,95561.0,1.1598813]
[1734886109291,0.00127335,95562.0,95561.0,1.1368813]
[1734886109521,0.00127335,95562.0,95561.0,1.1598813]
[1734886109725,0.00127335,95562.0,95561.0,1.34910627]
[1734886110558,0.00027335,95562.0,95561.0,1.34310627]
[1734886110851,0.00127335,95562.0,95561.0,1.35210627]
[1734886111175,0.00027335,95562.0,95561.0,1.43582579]
[1734886111574,0.00127335,95562.0,95561.0,1.44482579]
[1734886112281,0.00127335,95562.0,95561.0,1.2056813]
[1734886113080,0.00127335,95562.0,95561.0,1.43882579]
[1734886113698,0.00027335,95562.0,95561.0,1.42982579]
[1734886113828,0.00127335,95562.0,95561.0,1.43882579]
[1734886115818,0.00127335,95562.0,95561.0,1.2056813]
[1734886116992,0.00127335,95562.0,95561.0,1.1996813]
[1734886118768,0.00127335,95562.0,95561.0,1.3009897]
[1734886122162,0.00127335,95562.0,95561.0,1.2949897]
[1734886125548,0.00127335,95562.0,95561.0,1.32753011]
[1734886125752,0.00127335,95562.0,95561.0,1.67753011]
[1734886125753,3.5e-07,95562.0,95561.0,1.67753011]
[1734886126007,0.0799,95609.0,95576.0,0.232257]
[1734886126008,0.01173568,95587.0,95576.0,0.232257]
[1734886126161,0.01173568,95587.0,95586.0,0.7279841]
[1734886126542,0.01173568,95587.0,95586.0,0.8757841]
[1734886126758,0.00054275,95588.0,95586.0,0.8527841]
[1734886126928,0.00054275,95588.0,95587.0,0.02404591]
[1734886127102,0.00054275,95588.0,95587.0,0.01804591]
[1734886127312,0.00054275,95588.0,95587.0,0.00104591]
[1734886127516,0.00054275,95588.0,95587.0,0.10235431]
[1734886128299,0.00154275,95588.0,95587.0,0.10835431]
[1734886129113,0.00154275,95588.0,95587.0,0.65010341]
[1734886129380,0.00154275,95588.0,95587.0,1.0631141]
[1734886129998,0.00154275,95588.0,95587.0,1.07340011]
[1734886130254,1.5e-07,95591.0,95590.0,0.123]
[1734886130433,0.00013637,95591.0,95590.0,0.22535412]
[1734886130630,3.7e-07,95591.0,95590.0,0.2243084]
[1734886131201,3.7e-07,95591.0,95590.0,0.33318142]
[1734886131399,0.00700037,95591.0,95590.0,0.33418142]
[1734886131643,0.00700037,95591.0,95590.0,0.3017084]
[1734886132411,0.00700037,95591.0,95590.0,0.639365]
[1734886132812,0.00696037,95591.0,95590.0,0.639365]
[1734886133015,3.7e-07,95591.0,95590.0,0.639365]
[1734886133249,0.0001716,95616.0,95615.0,0.209172]
[1734886134735,0.0001716,95616.0,95615.0,0.7279211]
[1734886135066,0.0001716,95616.0,95615.0,0.76149986]
[1734886135266,0.0001716,95616.0,95615.0,0.98368898]
[1734886136890,0.0001716,95616.0,95615.0,1.32362876]
[1734886137074,0.0001716,95616.0,95615.0,1.32962876]
[1734886137502,0.0001716,95616.0,95615.0,1.32362876]
[1734886137951,6e-07,95616.0,95615.0,1.32362876]
[1734886138155,6e-07,95616.0,95615.0,1.20848898]
[1734886138355,6e-07,95616.0,95615.0,1.20948898]
[1734886138567,6e-07,95616.0,95615.0,1.35848898]
[1734886138731,0.0001714,95628.0,95627.0,0.1994]
[1734886138935,0.00031328,95628.0,95627.0,0.35015374]
[1734886139144,0.00031328,95628.0,95627.0,0.3491084]
[1734886143219,0.00031328,95628.0,95627.0,0.8678569]
[1734886143418,3.64e-06,95628.0,95627.0,0.8678569]
[1734886143641,4e-08,95631.0,95630.0,0.2017]
[1734886143843,4e-08,95631.0,95630.0,1.07280218]
[1734886144082,0.0001712,95658.0,95657.0,0.8532285]
[1734886144220,0.0001712,95658.0,95657.0,0.8762285]
[1734886144421,0.00033387,95658.0,95657.0,1.0775369]
[1734886144617,0.00016267,95658.0,95657.0,1.0775369]
[1734886146254,0.00016267,95658.0,95657.0,1.09850253]
[1734886146839,6.7e-07,95658.0,95657.0,1.10886053]
[1734886146972,6.7e-07,95658.0,95657.0,1.39237616]
[1734886147360,6.7e-07,95658.0,95657.0,1.38337616]
[1734886147957,6.7e-07,95658.0,95657.0,1.35886053]
[1734886148366,2.7e-07,95664.0,95663.0,0.1]
[1734886148512,2.7e-07,95664.0,95663.0,0.55405334]
[1734886148721,2.7e-07,95664.0,95663.0,0.5530084]
[1734886149369,0.0001714,95672.0,95667.0,0.2]
[1734886149517,0.00013207,95671.0,95670.0,0.2017]
[1734886149717,4.7e-07,95672.0,95671.0,0.6417485]